bitfinex-derivatives/quotes_SOLF0:USTF0_20250310
["timestamp","ask_amount","ask_price","bid_price","bid_amount"]
[1741596111746,174.26,126.42,126.39,3.0211]
[1741596112550,174.26,126.42,126.39,10.9319]
[1741596112854,174.3159981,126.42,126.39,3.0211]
[1741596113048,174.3159981,126.42,126.4,7.9103]
[1741596113549,174.3159981,126.42,126.4,7.96545861]
[1741596114354,174.3159981,126.42,126.4,0.05515861]
[1741596115955,0.0559981,126.42,126.4,0.05515861]
[1741596117453,0.0559981,126.42,126.41,7.9098]
[1741596118556,7.9065,126.47,126.4,2.91805861]
[1741596118761,7.9065,126.47,126.42,7.909]
[1741596119059,174.386,126.5,126.4,2.8629]
[1741596119256,7.907,126.46,126.41,7.9095]
[1741596119457,174.386,126.5,126.4,2.8629]
[1741596119850,0.05779302,126.46,126.44,0.05788105]
[1741596124161,0.05779302,126.46,126.44,7.96538105]
[1741596124556,7.9073,126.45,126.44,0.05788105]
[1741596124753,0.05779302,126.46,126.38,2.902]
[1741596124948,32.41602736,126.48,126.36,32.41602736]
[1741596125157,7.9096,126.42,126.35,2.8753]
[1741596125362,32.41602736,126.45,126.35,2.8753]
[1741596125559,2.8996,126.44,126.35,2.8753]
[1741596125750,32.41602736,126.42,126.32,2.8601]
[1741596125954,0.05047401,126.41,126.29,2.8753]
[1741596126149,7.9118,126.38,126.33,7.9147]
[1741596126355,173.96,126.37,126.29,5.7354]
[1741596127262,0.05582759,126.34,126.32,0.0535468]
[1741596132272,7.9148,126.33,126.32,0.0535468]
[1741596132567,7.9148,126.33,126.27,5.663]
[1741596132568,0.05582759,126.34,126.25,32.41602736]
[1741596132756,32.41602736,126.34,126.25,7.9196]
[1741596132964,3.0082,126.33,126.21,5.9088]
[1741596133162,3.0082,126.33,126.21,38.32482736]
[1741596133357,7.9157,126.32,126.27,7.9179]
[1741596133561,0.05190514,126.28,126.26,0.05603776]
[1741596133762,7.9157,126.32,126.26,0.05603776]
[1741596134061,0.05055448,126.3,126.28,7.9175]
[1741596134365,0.05055448,126.3,126.28,7.97262128]
[1741596134569,0.05055448,126.3,126.28,0.05512128]
[1741596134867,192.0,126.4,126.28,0.05512128]
[1741596134868,177.1115,126.39,126.28,0.05512128]
[1741596135167,177.1115,126.39,126.31,7.9159]
[1741596135364,177.1115,126.39,126.28,5.9158]
[1741596135565,177.1115,126.39,126.3,32.41602736]
[1741596135765,177.1115,126.39,126.33,7.9143]
[1741596135960,0.04997818,126.36,126.33,0.05415339]
[1741596137768,0.04997818,126.36,126.33,7.96855339]
[1741596138965,0.04997818,126.36,126.33,0.05415339]
[1741596139271,0.04997818,126.36,126.34,7.914]
[1741596139466,0.04997818,126.36,126.33,0.05415339]
[1741596139670,0.04997818,126.36,126.35,7.9135]
[1741596141371,0.04997818,126.36,126.34,7.9136]
[1741596141565,0.04997818,126.36,126.33,32.47018075]
[1741596142272,0.04997818,126.36,126.34,7.9138]
[1741596142572,0.04997818,126.36,126.33,32.47018075]
[1741596143071,0.04997818,126.36,126.35,7.9135]
[1741596143267,174.06,126.39,126.33,32.47018075]
[1741596143465,174.06,126.39,126.38,7.9116]
[1741596143661,174.06,126.39,126.36,32.41602736]
[1741596143870,174.06,126.39,126.33,32.41602736]
[1741596144271,174.06,126.39,126.3,224.41602736]
[1741596144272,174.06,126.39,126.3,192.0]
[1741596144478,0.05731099,126.37,126.35,0.05459677]
[1741596145974,7.97011099,126.37,126.35,0.05459677]
[1741596146374,0.05731099,126.37,126.35,0.05459677]
[1741596147174,0.05731099,126.37,126.36,7.9129]
[1741596147373,0.05731099,126.37,126.35,0.05459677]
[1741596147572,0.05731099,126.37,126.36,7.9129]
[1741596147780,0.05731099,126.37,126.35,0.05459677]
[1741596149171,7.9129,126.36,126.35,0.05459677]
[1741596149370,0.05731099,126.37,126.3,192.0]
[1741596149576,5.9272,126.38,126.3,192.0]
[1741596149780,7.9136,126.35,126.31,7.916]
[1741596150079,5.9272,126.38,126.29,2.8542]
[1741596150278,7.9139,126.35,126.31,7.916]
[1741596150479,0.0520561,126.35,126.32,0.05881435]
[1741596151575,7.9657561,126.35,126.32,0.05881435]
[1741596151776,0.0520561,126.35,126.32,0.05881435]
[1741596152078,0.0520561,126.35,126.32,7.97391435]
[1741596152478,0.0520561,126.35,126.32,0.05881435]
[1741596153178,0.0520561,126.35,126.32,7.97391435]
[1741596154583,7.9655561,126.35,126.32,7.97391435]
[1741596154983,7.9655561,126.35,126.32,0.05881435]
[1741596155573,7.9655561,126.35,126.32,7.97401435]
[1741596155780,0.0520561,126.35,126.32,7.97401435]
[1741596156977,0.0520561,126.35,126.32,0.05881435]
[1741596157182,32.46808346,126.35,126.26,2.7954]
[1741596157477,32.41602736,126.35,126.26,2.7954]
[1741596157681,7.9143,126.34,126.26,2.7954]
[1741596158184,7.9143,126.34,126.3,7.9163]
[1741596158482,39.02812736,126.38,126.29,0.05033411]
[1741596158483,0.05054978,126.31,126.29,0.05033411]
[1741596158680,32.41602736,126.36,126.27,7.9182]
[1741596158882,7.9743038,126.31,126.29,0.05726773]
[1741596160283,0.0578038,126.31,126.29,0.05726773]
[1741596160784,0.0578038,126.31,126.29,7.97426773]
[1741596160986,0.0578038,126.31,126.29,0.05726773]
[1741596161685,0.0578038,126.31,126.29,7.97446773]
[1741596162088,0.0578038,126.31,126.29,0.05726773]
[1741596162786,7.9167,126.3,126.29,0.05726773]
[1741596163777,7.9185,126.28,126.22,5.7221]
[1741596163984,174.08,126.27,126.22,5.7221]
[1741596164493,181.9989,126.27,126.23,7.9207]
[1741596164990,0.05644934,126.26,126.24,0.05082309]
[1741596166179,7.97584934,126.26,126.24,0.05082309]
[1741596166383,0.05644934,126.26,126.24,0.05082309]
[1741596166685,7.9214,126.23,126.16,178.7278918]
[1741596166987,32.41602736,126.26,126.16,178.7278918]
[1741596167393,7.9214,126.23,126.16,178.7278918]
[1741596167592,7.9214,126.23,126.18,7.9237]
[1741596167791,0.05819974,126.21,126.18,0.05467322]
[1741596168193,0.05819974,126.21,126.19,7.9232]
[1741596168393,0.05819974,126.21,126.18,0.05467322]
[1741596168589,0.05819974,126.21,126.2,7.9229]
[1741596169095,174.08,126.27,126.18,0.05467322]
[1741596169389,174.08,126.27,126.18,32.41602736]
[1741596169594,174.08,126.27,126.21,32.41602736]
[1741596169795,174.08,126.27,126.22,5.8016]
[1741596170289,0.05459574,126.26,126.23,0.05050873]
[1741596170594,174.16,126.3,126.23,0.05050873]
[1741596171684,0.05919251,126.28,126.23,7.97120873]
[1741596171891,0.05919251,126.28,126.23,0.05050873]
[1741596172092,7.9195,126.26,126.23,0.05050873]
[1741596172290,0.05919251,126.28,126.23,0.05050873]
[1741596172689,0.05919251,126.28,126.25,7.9195]
[1741596172890,0.05919251,126.28,126.23,0.05050873]
[1741596173395,0.05919251,126.28,126.24,7.9201]
[1741596174094,0.05919251,126.28,126.23,0.05050873]
[1741596174690,0.05919251,126.28,126.25,7.9192]
[1741596175090,0.05919251,126.28,126.23,0.05050873]
[1741596175695,0.05919251,126.28,126.26,7.9187]
[1741596176092,0.05919251,126.28,126.26,7.97190396]
[1741596176292,0.05919251,126.28,126.26,0.05320396]
[1741596178492,0.05919251,126.28,126.19,2.9875]
[1741596178696,32.41602736,126.25,126.18,7.9239]
[1741596179001,7.9216,126.23,126.18,7.9239]
[1741596179297,3.0276,126.24,126.15,2.9816]
[1741596179693,0.0577207,126.21,126.18,0.05551184]
[1741596182198,0.0577207,126.21,126.18,7.97961184]
[1741596182500,0.0577207,126.21,126.18,0.05551184]
[1741596182798,0.0577207,126.21,126.2,7.9229]
[1741596183697,0.0577207,126.21,126.18,7.97951184]
[1741596183893,0.0577207,126.21,126.18,0.05551184]
[1741596184897,0.0577207,126.21,126.19,7.9231]
[1741596185089,0.0577207,126.21,126.18,0.05551184]
[1741596187197,7.9804207,126.21,126.18,0.05551184]
[1741596187795,0.0577207,126.21,126.18,7.97961184]
[1741596188499,0.0577207,126.21,126.18,0.05551184]
[1741596188893,2.8029,126.28,126.18,0.05551184]
[1741596189098,2.8029,126.28,126.17,32.41602736]
[1741596189700,7.9202,126.25,126.21,7.9222]
[1741596189895,2.8029,126.28,126.17,32.41602736]
[1741596190101,0.05067406,126.24,126.22,0.05493852]
[1741596190699,7.97117406,126.24,126.22,0.05493852]
[1741596191001,0.05067406,126.24,126.22,0.05493852]
[1741596192396,36.42670142,126.24,126.15,2.9816]
[1741596192597,32.41602736,126.22,126.13,5.7948]
[1741596192792,32.41602736,126.22,126.08,208.0915281]
[1741596192793,32.41602736,126.2,126.08,224.41602736]
[1741596192999,174.24,126.19,126.09,2.9489]
[1741596193303,7.9265,126.15,126.1,7.9288]
[1741596193504,7.98198074,126.15,126.13,0.05944251]
[1741596193904,7.9267,126.14,126.13,0.05944251]
[1741596194404,0.05548074,126.15,126.13,0.05944251]
[1741596195805,0.05548074,126.15,126.14,7.9267]
[1741596196301,174.24,126.19,126.15,7.9256]
[1741596197107,174.24,126.19,126.11,32.41602736]
[1741596197305,174.24,126.19,126.09,35.36492736]
[1741596197509,0.05761366,126.16,126.14,0.05188758]
[1741596198497,0.05761366,126.16,126.14,7.97818758]
[1741596199809,0.05761366,126.16,126.14,0.05188758]
[1741596200003,0.05761366,126.16,126.15,7.9261]
[1741596200204,0.05761366,126.16,126.14,0.05188758]
[1741596200405,0.05761366,126.16,126.14,7.97818758]
[1741596200605,0.05761366,126.16,126.14,0.05188758]
[1741596203512,0.05761366,126.16,126.15,7.9261]
[1741596203912,0.05761366,126.16,126.14,0.05188758]
[1741596205312,0.05761366,126.16,126.14,7.97818758]
[1741596205512,0.05761366,126.16,126.14,0.05188758]
[1741596206016,0.05761366,126.16,126.15,7.9261]
[1741596207016,0.05761366,126.16,126.14,0.05188758]
[1741596207219,7.98301366,126.16,126.14,0.05188758]
[1741596207411,0.05761366,126.16,126.14,0.05188758]
[1741596208012,0.05761366,126.16,126.15,7.9261]
[1741596208216,0.05761366,126.16,126.14,0.05188758]
[1741596209614,7.9261,126.15,126.14,0.05188758]
[1741596210716,0.05761366,126.16,126.14,0.05188758]
[1741596211105,0.05761366,126.16,126.14,7.97828758]
[1741596212016,0.05761366,126.16,126.14,0.05188758]
[1741596215616,174.24,126.19,126.15,32.41602736]
[1741596215812,173.95581135,126.19,126.16,5.8085]
[1741596216618,121.20051135,126.19,126.18,40.34022736]
[1741596216807,116.30046891,126.19,126.18,40.34022736]
[1741596217210,5.756e-05,126.19,126.18,40.34022736]
[1741596217418,5.756e-05,126.19,126.18,41.78293888]
[1741596217624,182.2389,126.27,126.22,7.9216]
[1741596217922,182.2389,126.27,126.18,32.41602736]
[1741596218221,182.2389,126.27,126.21,7.9218]
[1741596218419,174.32,126.27,126.2,32.41602736]
[1741596218821,7.97359352,126.25,126.22,0.05457234]
[1741596219021,0.05329352,126.25,126.16,2.7655]
[1741596219224,32.41602736,126.26,126.16,2.7655]
[1741596220319,0.05873189,126.22,126.2,0.05114183]
[1741596220916,0.05873189,126.22,126.2,7.97404183]
[1741596221116,0.05873189,126.22,126.2,0.05114183]
[1741596221324,7.98083189,126.22,126.2,0.05114183]
[1741596221523,0.05873189,126.22,126.2,0.05114183]
[1741596222624,0.05873189,126.22,126.2,7.97404183]
[1741596223128,0.05873189,126.22,126.2,0.05114183]
[1741596224821,7.9223,126.21,126.2,0.05114183]
[1741596225529,0.05873189,126.22,126.2,0.05114183]
[1741596226025,7.9223,126.21,126.2,0.05114183]
[1741596226229,0.05873189,126.22,126.2,0.05114183]
[1741596226524,7.98093189,126.22,126.2,0.05114183]
[1741596226725,0.05873189,126.22,126.2,0.05114183]
[1741596227533,0.05873189,126.22,126.21,7.9223]
[1741596230629,0.05873189,126.22,126.2,0.05114183]
[1741596231824,0.05873189,126.22,126.2,7.97364183]
[1741596232230,0.05873189,126.22,126.2,0.05114183]
[1741596233232,0.05873189,126.22,126.2,7.97364183]
[1741596233430,0.05873189,126.22,126.2,0.05114183]
[1741596233926,7.9226,126.21,126.16,2.7655]
[1741596234122,0.05873189,126.22,126.16,2.7655]
[1741596234529,0.05873189,126.22,126.18,7.9239]
[1741596234926,0.05873189,126.22,126.16,2.7655]
[1741596235229,0.05873189,126.22,126.19,0.05868219]
[1741596235429,0.05873189,126.22,126.19,7.98198219]
[1741596235733,0.05873189,126.22,126.19,0.05868219]
[1741596236125,0.05873189,126.22,126.2,7.9229]
[1741596237220,0.05873189,126.22,126.19,7.98178219]
[1741596237530,0.05873189,126.22,126.19,0.05868219]
[1741596238328,0.05873189,126.22,126.2,7.9225]
[1741596238725,0.05873189,126.22,126.19,0.05868219]
[1741596238926,0.05873189,126.22,126.21,7.9223]
[1741596240436,0.05873189,126.22,126.19,0.05868219]
[1741596241526,0.05873189,126.22,126.2,7.9228]
[1741596241728,0.05873189,126.22,126.19,0.05868219]
[1741596242127,0.05873189,126.22,126.21,7.9223]
[1741596243939,3.189e-05,126.22,126.21,7.9223]
[1741596245938,3.189e-05,126.22,126.2,7.9226]
[1741596246442,3.189e-05,126.22,126.19,0.05868219]
[1741596247439,3.189e-05,126.22,126.2,7.9226]
[1741596247746,3.189e-05,126.22,126.19,0.05868219]
[1741596248047,3.189e-05,126.22,126.13,87.69481866]
[1741596248341,5.7531,126.23,126.16,7.9253]
[1741596248545,5.7531,126.23,126.14,32.41602736]
[1741596248941,5.7531,126.23,126.19,7.9232]
[1741596249141,0.05033281,126.2,126.19,7.9232]
[1741596249541,3.281e-05,126.2,126.19,7.9232]
[1741596249740,174.26,126.25,126.18,32.47357956]
[1741596249941,174.26,126.25,126.2,32.41602736]
[1741596250739,0.05965478,126.24,126.22,32.41602736]
[1741596250944,0.05965478,126.24,126.23,7.921]
[1741596253054,5.478e-05,126.24,126.23,7.921]
[1741596254953,5.8405,126.31,126.24,7.9204]
[1741596255155,5.8405,126.31,126.24,32.41602736]
[1741596255355,5.8405,126.31,126.26,32.41602736]
[1741596255554,2.8728,126.31,126.3,7.9167]
[1741596255953,2.8728,126.31,126.26,32.41602736]
[1741596256257,2.8728,126.31,126.29,0.05634871]
[1741596256456,2.8728,126.31,126.29,7.97324871]
[1741596257058,2.8728,126.31,126.29,0.05634871]
[1741596257759,2.8728,126.31,126.22,32.41602736]
[1741596257955,2.8728,126.31,126.24,7.92]
[1741596258357,2.8728,126.31,126.22,32.41602736]
[1741596258958,0.0518098,126.28,126.25,0.05666683]
[1741596260753,0.0518098,126.28,126.26,7.9192]
[1741596260957,0.0518098,126.28,126.25,0.05666683]
[1741596261757,0.0518098,126.28,126.27,7.9185]
[1741596263759,0.0518098,126.28,126.27,40.33452736]
[1741596264952,0.0518098,126.28,126.27,7.9185]
[1741596268258,0.0518098,126.28,126.27,28.22092248]
[1741596268458,0.0518098,126.28,126.25,20.35908931]
[1741596269367,0.0518098,126.28,126.26,7.9188]
[1741596269954,0.0518098,126.28,126.25,20.35908931]
[1741596270458,0.0518098,126.28,126.27,7.9185]
[1741596270664,0.0518098,126.28,126.27,28.22092248]
[1741596274063,174.22,126.33,126.3,7.9162]
[1741596274566,174.22,126.33,126.28,7.9178]
[1741596274766,174.22,126.33,126.25,20.30242248]
[1741596275268,0.05754673,126.3,126.28,0.05693004]
[1741596275467,0.05754673,126.3,126.25,20.30242248]
[1741596275768,7.9176,126.29,126.25,28.22182248]
[1741596276165,10.9722,126.29,126.25,28.22182248]
[1741596276465,7.918,126.28,126.23,20.30242248]
[1741596276771,0.05084924,126.27,126.26,0.059836]
[1741596276966,0.05084924,126.27,126.24,7.9201]
[1741596277266,0.05084924,126.27,126.21,23.31322248]
[1741596277460,0.05084924,126.27,126.23,20.30242248]
[1741596278171,0.05084924,126.27,126.24,0.05535954]
[1741596278669,0.05084924,126.27,126.25,7.9198]
[1741596279059,0.05084924,126.27,126.26,7.9192]
[1741596280468,0.05084924,126.27,126.25,7.9196]
[1741596280663,0.05084924,126.27,126.24,0.05535954]
[1741596281575,0.05084924,126.27,126.25,20.30242248]
[1741596282163,0.05084924,126.27,126.24,0.05535954]
[1741596282770,0.05084924,126.27,126.25,7.9197]
[1741596283365,0.05084924,126.27,126.24,0.05535954]
[1741596283571,0.05084924,126.27,126.25,7.9195]
[1741596284277,0.05084924,126.27,126.24,0.05535954]
[1741596284680,7.96964924,126.27,126.24,0.05535954]
[1741596285072,0.05084924,126.27,126.24,0.05535954]
[1741596285480,0.05084924,126.27,126.24,7.97535954]
[1741596285873,0.05084924,126.27,126.24,0.05535954]
[1741596286077,0.05084924,126.27,126.26,7.9192]
[1741596287079,0.05084924,126.27,126.24,0.05535954]
[1741596288177,0.05084924,126.27,126.25,7.9194]
[1741596288880,7.96944924,126.27,126.24,7.97545954]
[1741596289082,7.96944924,126.27,126.24,0.05535954]
[1741596289379,0.05084924,126.27,126.24,0.05535954]
[1741596289580,0.05084924,126.27,126.25,7.9197]
[1741596289983,0.05084924,126.27,126.24,0.05535954]
[1741596290179,0.05084924,126.27,126.26,7.9192]
[1741596291979,0.05084924,126.27,126.24,0.05535954]
[1741596292279,0.05084924,126.27,126.25,7.9198]
[1741596292783,0.05084924,126.27,126.26,7.9192]
[1741596292974,0.05084924,126.27,126.24,0.05535954]
[1741596293175,0.05084924,126.27,126.26,7.9192]
[1741596293582,0.05084924,126.27,126.24,0.05535954]
[1741596296074,0.05084924,126.27,126.25,7.9195]
[1741596296279,0.05084924,126.27,126.24,0.05535954]
[1741596296474,0.05084924,126.27,126.25,20.30242248]
[1741596296679,0.05084924,126.27,126.26,7.9192]
[1741596296880,0.05084924,126.27,126.25,20.30242248]
[1741596297082,0.05084924,126.27,126.24,0.05535954]
[1741596297285,0.05084924,126.27,126.24,7.97525954]
[1741596297488,0.05084924,126.27,126.24,0.05535954]
[1741596298192,0.05084924,126.27,126.24,20.35778202]
[1741596298385,0.05084924,126.27,126.26,7.9192]
[1741596298585,0.05084924,126.27,126.26,28.22162248]
[1741596299093,177.022,126.33,126.26,20.30242248]
[1741596299297,177.022,126.33,126.28,20.30242248]
[1741596299792,177.022,126.33,126.26,20.30242248]
[1741596299993,7.917,126.3,126.26,20.30242248]
[1741596300294,7.917,126.3,126.28,0.05657904]
[1741596300493,7.9173,126.29,126.28,0.05657904]
[1741596300695,7.9173,126.29,126.25,7.9195]
[1741596301492,2.9176,126.3,126.26,28.22122248]
[1741596301690,0.05106906,126.29,126.27,0.05875656]
[1741596302198,0.05106906,126.29,126.27,7.97725656]
[1741596302398,0.05106906,126.29,126.28,20.30242248]
[1741596304006,177.022,126.33,126.28,20.30242248]
[1741596304199,174.22,126.33,126.31,20.30242248]
[1741596305299,174.27010886,126.33,126.27,20.30242248]
[1741596305492,182.1351,126.33,126.27,28.22092248]
[1741596305692,174.22,126.33,126.27,20.30242248]
[1741596305892,174.22,126.33,126.25,20.30242248]
[1741596306095,7.917,126.3,126.25,20.30242248]
[1741596306494,0.05120853,126.29,126.26,0.05473532]
[1741596307892,0.05120853,126.29,126.28,7.9179]
[1741596308091,0.05120853,126.29,126.26,0.05473532]
[1741596308500,7.96880853,126.29,126.26,0.05473532]
[1741596308988,0.05120853,126.29,126.28,7.9179]
[1741596309492,0.05120853,126.29,126.26,7.97363532]
[1741596309787,0.05120853,126.29,126.26,0.05473532]
[1741596310100,0.05120853,126.29,126.27,7.9182]
[1741596310397,0.05120853,126.29,126.26,0.05473532]
[1741596310587,0.05120853,126.29,126.28,7.9179]
[1741596310993,0.05120853,126.29,126.26,0.05473532]
[1741596311188,0.05120853,126.29,126.27,7.9181]
[1741596311400,0.05120853,126.29,126.26,0.05473532]
[1741596311698,0.05120853,126.29,126.26,7.97363532]
[1741596311900,0.05120853,126.29,126.26,0.05473532]
[1741596312199,0.05120853,126.29,126.28,7.9179]
[1741596313094,0.05120853,126.29,126.26,0.05473532]
[1741596313292,0.05120853,126.29,126.27,28.22082248]
[1741596313693,0.05120853,126.29,126.27,20.30242248]
[1741596314002,0.05120853,126.29,126.28,7.9179]
[1741596314395,177.1273,126.33,126.27,23.32152248]
[1741596314697,177.1273,126.33,126.31,7.916]
[1741596315099,177.1273,126.33,126.3,28.21872248]
[1741596315396,174.22,126.33,126.3,20.30242248]
[1741596315594,174.27501695,126.33,126.3,20.36278523]
[1741596315795,174.27501695,126.33,126.32,28.21782248]
[1741596316597,0.05501695,126.33,126.32,28.21782248]
[1741596316998,0.05501695,126.33,126.3,20.36278523]
[1741596317201,7.96981695,126.33,126.3,0.06036275]
[1741596317394,0.05501695,126.33,126.3,0.06036275]
[1741596317795,0.05501695,126.33,126.22,139.08189156]
[1741596318000,2.8553,126.35,126.25,20.30242248]
[1741596318200,7.9157,126.32,126.28,7.9179]
[1741596318601,2.8553,126.35,126.28,7.9179]
[1741596318998,0.05908136,126.33,126.3,0.05025629]
[1741596319411,7.9158,126.32,126.3,0.05025629]
[1741596319597,0.05908136,126.33,126.3,0.05025629]
[1741596320197,0.05908136,126.33,126.31,7.9156]
[1741596320399,0.05908136,126.33,126.3,0.05025629]
[1741596320606,0.05908136,126.33,126.32,7.9154]
[1741596321701,0.05908136,126.33,126.31,7.9158]
[1741596321897,0.05908136,126.33,126.3,0.05025629]
[1741596323099,0.05908136,126.33,126.31,7.9157]
[1741596323306,0.05908136,126.33,126.3,0.05025629]
[1741596323495,0.05908136,126.33,126.31,20.30242248]
[1741596323694,0.05908136,126.33,126.32,7.9154]
[1741596324906,2.9333,126.37,126.31,20.30242248]
[1741596325208,182.0103,126.41,126.34,20.30242248]
[1741596325397,174.1,126.41,126.34,20.30242248]
[1741596325597,174.1,126.41,126.36,7.9125]
[1741596325806,7.9114,126.39,126.34,20.30242248]
[1741596326198,0.0581235,126.38,126.35,0.05978868]
[1741596326393,7.9698235,126.38,126.35,0.05978868]
[1741596326598,0.0581235,126.38,126.35,0.05978868]
[1741596326808,0.0581235,126.38,126.35,7.97298868]
[1741596327008,0.0581235,126.38,126.35,0.05978868]
[1741596328199,20.36054598,126.38,126.28,20.30242248]
[1741596328407,5.6877,126.37,126.29,7.9171]
[1741596328708,7.9151,126.33,126.28,20.30242248]
[1741596328908,5.6877,126.37,126.31,7.9157]
[1741596329103,5.6877,126.37,126.28,20.30242248]
[1741596329309,7.96725568,126.35,126.33,0.05997838]
[1741596329509,0.05345568,126.35,126.33,7.97437838]
[1741596329805,0.05345568,126.35,126.33,0.05997838]
[1741596330402,0.05345568,126.35,126.33,7.97447838]
[1741596330607,0.05345568,126.35,126.33,0.05997838]
[1741596330806,0.05345568,126.35,126.34,7.9141]
[1741596332809,0.05345568,126.35,126.33,0.05997838]
[1741596336110,0.05345568,126.35,126.34,28.21652248]
[1741596337015,0.05345568,126.35,126.33,0.05997838]
[1741596338102,7.9141,126.34,126.33,0.05997838]
[1741596338705,0.05345568,126.35,126.33,0.05997838]
[1741596338912,0.05345568,126.35,126.34,20.30242248]
[1741596339106,0.05345568,126.35,126.34,28.21652248]
[1741596341417,2.835,126.4,126.39,7.911]
[1741596341716,174.1,126.41,126.38,20.30242248]
[1741596342310,174.1,126.41,126.38,28.21392248]
[1741596342509,174.1,126.41,126.38,20.30242248]
[1741596342814,174.15439297,126.41,126.38,20.36255421]
[1741596343017,174.15439297,126.41,126.4,20.30242248]
[1741596343816,174.15439297,126.41,126.4,28.21282248]
[1741596344022,174.15439297,126.41,126.38,20.36255421]
[1741596344217,174.15439297,126.41,126.38,0.06013173]
[1741596345920,174.15439297,126.41,126.38,20.36255421]
[1741596346716,174.15439297,126.41,126.4,20.30242248]
[1741596347017,174.15439297,126.41,126.38,20.36255421]
[1741596348414,174.15439297,126.41,126.38,28.27385421]
[1741596349013,182.06449297,126.41,126.38,0.06013173]
[1741596349423,174.15439297,126.41,126.38,0.06013173]
[1741596349619,7.9104,126.4,126.38,0.06013173]
[1741596349825,11.0262,126.4,126.38,0.06013173]
[1741596350121,3.1158,126.4,126.38,7.97143173]
[1741596350319,3.1158,126.4,126.38,0.06013173]
[1741596350514,174.15439297,126.41,126.38,20.36255421]
[1741596350717,174.15439297,126.41,126.39,7.9107]
[1741596352029,174.15439297,126.41,126.38,28.27385421]
[1741596352324,174.15439297,126.41,126.38,20.36255421]
[1741596352923,3.1158,126.44,126.4,20.30242248]
[1741596353227,3.1158,126.44,126.4,28.21232248]
[1741596353423,3.1158,126.44,126.38,20.30242248]
[1741596354023,7.9095,126.42,126.38,28.21372248]
[1741596354222,7.96435792,126.42,126.4,0.05992936]
[1741596354429,0.05485792,126.42,126.4,0.05992936]
[1741596354724,0.05485792,126.42,126.4,20.36235184]
[1741596355125,0.05485792,126.42,126.4,28.27245184]
[1741596355428,0.05485792,126.42,126.4,20.36235184]
[1741596356125,0.05485792,126.42,126.41,7.9098]
[1741596357030,5.7941,126.48,126.44,7.9076]
[1741596357425,5.7941,126.48,126.43,20.30242248]
[1741596357625,5.7941,126.48,126.45,7.907]
[1741596357834,5.7941,126.48,126.43,20.30242248]
[1741596358225,0.0591509,126.47,126.44,0.05095381]
[1741596358533,7.9065,126.47,126.41,20.30242248]
[1741596358729,0.05493247,126.47,126.44,0.05699562]
[1741596358925,0.05493247,126.47,126.41,20.30242248]
[1741596359125,7.9076,126.45,126.41,20.30242248]
[1741596359325,5.7941,126.48,126.42,7.909]
[1741596359531,7.9072,126.46,126.42,7.909]
[1741596359732,5.7941,126.48,126.42,7.909]
[1741596359933,5.7941,126.48,126.41,28.21202248]
[1741596360128,7.9073,126.45,126.44,0.05332136]
[1741596360322,7.9073,126.45,126.41,20.30242248]
[1741596360539,7.9073,126.45,126.42,7.9088]
[1741596360730,7.96166303,126.46,126.41,20.30242248]
[1741596361038,0.05476303,126.46,126.41,20.30242248]
[1741596361428,0.05476303,126.46,126.43,7.9085]
[1741596361630,0.05476303,126.46,126.42,0.05731279]
[1741596361928,0.05476303,126.46,126.43,20.30242248]
[1741596362535,0.05476303,126.46,126.45,28.20972248]
[1741596363239,173.96,126.53,126.45,20.30242248]
[1741596363531,194.26242248,126.53,126.45,20.30242248]
[1741596363730,20.30242248,126.51,126.41,20.30242248]
[1741596364031,194.26242248,126.53,126.38,193.2691]
[1741596364032,20.30242248,126.49,126.39,20.30242248]
[1741596364233,2.9274,126.48,126.39,28.21312248]
[1741596364427,0.06041309,126.45,126.43,0.05519642]
[1741596364628,0.06041309,126.45,126.39,20.30242248]
[1741596365030,0.06041309,126.45,126.37,20.30242248]
[1741596365232,20.30242248,126.47,126.36,7.9125]
[1741596365433,2.961,126.46,126.37,20.30242248]
[1741596365731,7.91,126.41,126.37,20.30242248]
[1741596366037,2.961,126.46,126.4,0.05612242]
[1741596366337,7.9095,126.42,126.4,0.05612242]
[1741596367130,7.9098,126.41,126.4,0.05612242]
[1741596367331,0.05809704,126.44,126.4,0.05612242]
[1741596368232,7.9091,126.43,126.4,0.05612242]
[1741596368438,0.05809704,126.44,126.4,0.05612242]
[1741596369742,0.05809704,126.44,126.38,7.9113]
[1741596369936,7.9102,126.41,126.37,20.30242248]
[1741596370133,173.96,126.45,126.37,20.30242248]
[1741596370333,194.26242248,126.45,126.37,28.21422248]
[1741596370736,194.26242248,126.45,126.35,20.30242248]
[1741596370943,7.9098,126.41,126.4,0.05544514]